Cogmind - Beta 14 @@@ ROGUE MODE // 2025.01.19 @ 18:26:41 Player: SuperSwiss Result: Destroyed by as-30704 with Assembled Rifle Performance ------------- Evolutions (0) 0 Regions Visited (2) 400 Robots Destroyed (25) 125 Value Destroyed (394) 394 Prototype IDs (1) 20 Alien Tech Used (0) 0 Bonus (0) 0 TOTAL SCORE: 939 Bonus ------- None Cogmind --------- Core Integrity 0/250 Matter 211/300 Energy 250/250 System Corruption 1% Temperature Cool (0) Movement Core (300) Ox5 Location -10/Mines Parts ------- > --- POWER (1) -------- Ion Engine > --- PROPULSION (2) --- (None) > --- UTILITY (2) ------ Medium Storage Unit Experimental Sensor Array > --- WEAPON (2) ------- Assault Rifle > --- INVENTORY (10) --- Flight Unit Flight Unit ECM Suite ECM Suite Assault Rifle Bore Cannon Grenade Launcher Datajack Mining Claw Peak State ------------ > --- POWER ------------ Ion Engine > --- PROPULSION ------- Light Treads Light Treads > --- UTILITY ---------- Medium Storage Unit Experimental Sensor Array > --- WEAPON ----------- Assault Rifle Assault Rifle > --- INVENTORY -------- Wheel Flight Unit Flight Unit ECM Suite ECM Suite Assault Rifle Bore Cannon Grenade Launcher Datajack Mining Claw [Rating: 16] Favorites ----------- Power Ion Engine Engine Ion Engine Propulsion Light Treads Treads Light Treads Wheel Wheel Utility Medium Storage Unit Device Seismic Detector Storage Medium Storage Unit Weapon Assault Rifle Ballistic Gun Assault Rifle Launcher Grenade Launcher Build | -11 -10 -10 ------- Run | Yrd Mat Min Slots Evolved . | . . . Power . | . . . Propulsion . | . . . Utility . | . . . Weapon . | . . . Parts Attached 27 | 7 14 6 Power 1 | 1 . . Engine 1 | 1 . . Core . | . . . Reactor . | . . . Propulsion 6 | 2 3 1 Treads 4 | 2 2 . Leg . | . . . Wheel 2 | . 1 1 Hover . | . . . Flight . | . . . Utility 11 | 2 6 3 Device 6 | 1 2 3 Storage 5 | 1 4 . Processor . | . . . Hackware . | . . . Protection . | . . . Artifact . | . . . Weapon 9 | 2 5 2 Energy Gun . | . . . Energy Cannon . | . . . Ballistic Gun 6 | 2 3 1 Ballistic Cannon . | . . . Launcher 3 | . 2 1 Special Weapon . | . . . Impact Weapon . | . . . Slashing Weapon . | . . . Piercing Weapon . | . . . Special Melee Weapon . | . . . Unidentified Prototypes 1 | . . 1 Parts Lost 5 | . 1 4 Power . | . . . Propulsion 3 | . . 3 Utility 1 | . 1 . Weapon 1 | . . 1 Highest Loss Streak 4 | . 1 4 To Critical Strikes . | . . . Average Slot Usage (%) 98 | . 98 99 Engine 14 | . 14 14 Treads 27 | . 27 27 Device 12 | . 12 14 Storage 14 | . 14 14 Ballistic Gun 27 | . 27 27 Peak Build Rating 16 | 7 8 16 Average Rating 9 | 3 7 14 On Entrance 5 | . 7 8 Naked Turns . | . . . Heaviest Build 90 | 15 90 21 Greatest Support 40 | 40 40 40 Greatest Overweight (x) 8 | 3 8 1 Average Overweight (x) . | . . . Largest Inventory Capacity 25 | 8 25 10 Average Capacity 12 | 6 13 10 Most Carried 11 | 5 11 10 Average Carried 8 | 1 8 9 Final Capacity 10 | 8 10 10 Final Carried 10 | . 10 9 Class Distribution -------------------- 100% | Mutant Dominant Class ---------------- Mutant | -10/Materials Mutant | -10/Mines Resources | -11 -10 -10 ----------- Run | Yrd Mat Min Matter Collected 837 | 148 484 205 Remotely . | . . . Salvage Created 737 | 12 532 193 Parts 56 | 3 41 12 Haulers Intercepted 2 | . 2 . Recyclers Shooed . | . . . Parts Field Recycled . | . . . Retrieved Matter . | . . . Parts Self-Destructed . | . . . Prevented . | . . . Kills | -11 -10 -10 ------- Run | Yrd Mat Min Combat Hostiles Destroyed 24 | . 11 13 Guns 14 | . 7 7 AOE 10 | . 4 6 Classes Destroyed 7 | 1 5 1 Worker 2 | . 1 1 Tunneler 4 | 1 3 . Hauler 2 | . 2 . Recycler 1 | . 1 . Swarmer 9 | . 6 3 Grunt 7 | . 5 2 Assembled 8 | . . 8 Best Kill Streak 8 | 1 3 8 Combat Bots Only 8 | . 3 8 Max Kills in Single Turn 3 | 1 2 3 Gunslinging 1 | . . 1 Exploded 3 | . 2 3 Melee . | . . . Uniques/NPCs Destroyed . | . . . Combat | -11 -10 -10 -------- Run | Yrd Mat Min Hostile Shots Fired 120 | . 36 84 Missed 37 | . 14 23 Damage Taken 1110 | . 302 808 Core 257 | . 17 240 Absorbed by Shields . | . . . Core Remaining (%) 100 | 100 . . Volleys Fired 70 | 1 41 28 Largest 2 | 2 2 2 Hottest 50 | 40 50 50 Shots Fired 135 | 2 82 51 Gun 127 | 2 78 47 Cannon . | . . . Launcher 8 | . 4 4 Special . | . . . Kinetic 127 | 2 78 47 Thermal . | . . . Explosive 8 | . 4 4 Electromagnetic . | . . . Robot Hit Streak 17 | 1 17 6 Robot Miss Streak 4 | . 4 4 Penetration Max . | . . . Secondary Targets 2 | . . 2 Max Gunslinging Chain 1 | . . 1 Shots Hit Robots 79 | 1 48 30 Core Hits 53 | 1 28 24 Critical Kills . | . . . Critical Parts Destroyed . | . . . Critical Strikes . | . . . Melee Attacks . | . . . Impact . | . . . Slashing . | . . . Piercing . | . . . Sneak Attacks . | . . . Combat Hostiles . | . . . Follow-up Attacks . | . . . Damage Inflicted 1531 | 15 825 691 Guns 951 | 15 598 338 Cannons . | . . . Explosions 580 | . 227 353 Melee . | . . . Ramming . | . . . Kinetic 951 | 15 598 338 Thermal . | . . . Explosive 580 | . 227 353 Electromagnetic . | . . . Impact . | . . . Slashing . | . . . Piercing . | . . . Highest Corruption 1 | . 1 1 Average Corruption 1 | . 1 1 Corruption Purged . | . . . Corruption Blocked . | . . . Effects 12 | . 8 4 Message Errors 3 | . 2 1 Matter Fused 3 | . 2 1 Heat Flow Errors 2 | . 1 1 Energy Discharges 2 | . 1 1 Data Loss (minor) 1 | . 1 . Data Loss (major) 1 | . 1 . Overload Shots . | . . . Overflow Damage 8 | . . 8 Projectiles . | . . . Explosions 8 | . . 8 Melee . | . . . Knockbacks . | . . . Impact . | . . . Kinetic . | . . . Secondary . | . . . Self-Inflicted Damage 41 | . 32 9 Shots 2 | . 1 1 Rammed . | . . . Targets Rammed . | . . . Kicked . | . . . Crushed . | . . . Highest Temperature 231 | . 180 231 Average Temperature 67 | . 51 81 Received Heat Transfer 186 | . 102 84 Effects 1 | . . 1 Energy Bleed 1 | . . 1 Siege Activations . | . . . Robots Corrupted . | . . . Combat Hostiles . | . . . Parts Fried . | . . . Impact Corruptions . | . . . Robots Melted . | . . . Combat Hostiles . | . . . Parts Melted . | . . . Heat Transferred . | . . . Parts Sabotaged . | . . . Parts Stolen . | . . . Parts Stripped . | . . . Power Chain Reactions . | . . . Alert | -11 -10 -10 ------- Run | Yrd Mat Min Peak Influence 194 | 5 194 77 Initial 7 | . 3 7 Average 56 | 2 69 34 Maximum Alert Level . | . . . Low Security (%) 100 | 100 100 100 Level 1 . | . . . Level 2 . | . . . Level 3 . | . . . Level 4 . | . . . Level 5 . | . . . High Security . | . . . Max Security . | . . . Squads Dispatched 2 | . 2 . Investigation . | . . . Extermination . | . . . Reinforcement 2 | . 2 . Assault . | . . . Garrison . | . . . Intercept . | . . . Searches Triggered . | . . . Construction Impeded . | . . . Haulers Reinforced . | . . . Active Scanning Responses . | . . . Cargo Convoy Interrupts . | . . . Stealth | -11 -10 -10 --------- Run | Yrd Mat Min Distress Signals 2 | . 2 . Communications Jammed . | . . . Distress Signals . | . . . Times Spotted 57 | . 39 18 Peak Tracking Total 11 | . 5 11 Tactical Retreats . | . . . Traps | -11 -10 -10 ------- Run | Yrd Mat Min Traps Triggered 2 | . 2 . Indirectly . | . . . Trap Hack Attempts . | . . . Triggered . | . . . Disarmed . | . . . Reprogrammed . | . . . Reused . | . . . Traps Extracted . | . . . Installed . | . . . Triggered . | . . . Machines | -11 -10 -10 ---------- Run | Yrd Mat Min Machines Disabled . | . . . Max in Single Turn . | . . . Machines Repaired . | . . . Machines Dismantled . | . . . Machines Sabotaged . | . . . Overloaded Fab Kills . | . . . Hacking | -11 -10 -10 --------- Run | Yrd Mat Min Machines Accessed 8 | . 8 . Terminals 6 | . 6 . Fabricators . | . . . Repair Stations . | . . . Recycling Units 2 | . 2 . Scanalyzers . | . . . Garrison Access . | . . . Total Hacks 22 | . 22 . Successful 10 | . 10 . Failed 12 | . 12 . Catastrophic 4 | . 4 . Database Lockouts . | . . . Manual 17 | . 17 . Terminals 19 | . 19 . Fabricators . | . . . Repair Stations . | . . . Recycling Units 3 | . 3 . Scanalyzers . | . . . Garrison Access . | . . . Terminal Hacks 2 | . 2 . Hauler Manifests 1 | . 1 . Registered Components 1 | . 1 . Fabricator Hacks . | . . . Repair Station Hacks . | . . . Recycling Unit Hacks 3 | . 3 . Report Inventory 2 | . 2 . Retrieve Components 1 | . 1 . Scanalyzer . | . . . Garrison Access Hacks . | . . . Unauthorized Hacks 5 | . 5 . Terminals 5 | . 5 . Botnet 5 | . 5 . Fabricators . | . . . Repair Stations . | . . . Recycling Units . | . . . Scanalyzers . | . . . Garrison Access . | . . . Data Cores Recovered . | . . . Used . | . . . Hacking Detections 6 | . 6 . Full Trace Events . | . . . Feedback Events . | . . . Feedback Blocked . | . . . Robot Schematics Acquired . | . . . Robots Built . | . . . Authchips . | . . . Time . | . . . Total Robot Build Rating . | . . . Part Schematics Acquired . | . . . Parts Built . | . . . Authchips . | . . . Time . | . . . Total Part Build Rating . | . . . Parts Repaired . | . . . Time . | . . . Parts Recycled . | . . . Recycled Matter . | . . . Retrieved Matter . | . . . Retrieved Components 9 | . 9 . Parts Scanalyzed . | . . . Part Schematics Acquired . | . . . Parts Damaged . | . . . Bothacking | -11 -10 -10 ------------ Run | Yrd Mat Min Used RIF Installer . | . . . Robots Hacked . | . . . Non-combat . | . . . Combat . | . . . Robot Hacks Applied . | . . . Relay Couplers Released . | . . . Fabnet Peak Effective % . | . . . Robots Rewired . | . . . Allies Hacked . | . . . Hacks Repelled . | . . . Allies | -11 -10 -10 -------- Run | Yrd Mat Min Total Allies . | . . . Largest Group . | . . . Highest-Rated Group . | . . . Highest-Rated Ally . | . . . Total Orders . | . . . Ally Attacks . | . . . Total Damage . | . . . Kills . | . . . Allies Corrupted . | . . . Allies Melted . | . . . Intel | -11 -10 -10 ------- Run | Yrd Mat Min Robot Analysis Total . | . . . Derelict Logs Recovered . | . . . Drone Launches . | . . . Drone Recoveries . | . . . Exploration | -11 -10 -10 ------------- Run | Yrd Mat Min Turns Passed 2620 | 47 1696 877 Spaces Moved 1258 | 30 764 464 Core 18 | 18 . . Treads 1220 | 12 748 460 Legs . | . . . Wheels 20 | . 16 4 Hover . | . . . Flight . | . . . Fastest Speed 50 | 50 160 95 Average Speed 181 | 104 198 159 Slowest Speed 320 | 200 320 160 Overloaded Moves . | . . . Propulsion Burnouts . | . . . Robots Hopped . | . . . Cave-ins Triggered . | . . . Exploration Rate (%) 57 | 3 97 73 Regions Visited 2 Branch Regions 1 Pre-discovered Areas . | . . . Known Exits Taken . | . . . Unknown Exits Taken 2 | 1 1 . Scrap Searched 1 | . . 1 Spaces Dug . | . . . Terrain Destroyed 39 | . 13 26 Melee . | . . . Projectile . | . . . AOE 39 | . 13 26 Terrain Rammed . | . . . Walls Destroyed . | . . . Machines Disabled . | . . . Actions | -11 -10 -10 --------- Run | Yrd Mat Min Total 1453 | 43 860 550 Wait 65 | . 18 47 Move 1256 | 29 763 464 Hop . | . . . Pick Up 24 | 6 17 1 Fast Attach 4 | 1 . 3 Attach 8 | 6 1 1 Detach . | . . . Swap 15 | . 13 2 Drop 11 | . 7 4 Fire 70 | 1 41 28 Melee . | . . . Ram . | . . . Kick . | . . . Crush . | . . . Escape Stasis . | . . . Rewire . | . . . Trap . | . . . Miscellaneous . | . . . Route ------- -11/Scrapyard -10/Materials (discovered 4 exits: [*Mat x3] / [*Min]) -10/Mines (discovered 3 exits: [*Mat x2] / [*Sub]) History --------- Turn | Location | Event 9 | -11/Scrapyard | Discovered new exit (range 14) 48 | -11/Scrapyard | Entered Materials 142 | -10/Materials | Discovered new exit (range 7) 307 | -10/Materials | Build established: Mutant 387 | -10/Materials | Discovered new exit (range 16) 493 | -10/Materials | Discovered new exit (range 4) 895 | -10/Materials | Discovered new exit (range 15) 1744 | -10/Materials | Entered Mines 1764 | -10/Mines | A weapon hastily lodged in a ceiling crevice suddenly fell to the ground 1928 | -10/Mines | Found a damaged Exp. Sensor Array with a note attached 1932 | -10/Mines | Found Prototype Device 1932 | -10/Mines | Identified Exp. Sensor Array 2064 | -10/Mines | Discovered new exit (range 7) 2087 | -10/Mines | Discovered new exit (range 8) 2327 | -10/Mines | Discovered new exit (range 9) 2566 | -10/Mines | Assembled infested the area 2593 | -10/Mines | Core integrity fell below 50% 2609 | -10/Mines | Core integrity fell below 20% 2621 | -10/Mines | Destroyed by as-30704 with Assembled Rifle Last Messages --------------- 02559_ Found Med. Battery. 02559_ Found Welding Torch. 02559_ Found 56 Matter. 02560_ Acquired 8 matter. 02566_ ALERT: Infestation in the mines, dispatching Demolisher response squad. 02585_ Destroyed Asb. Hover Unit. 02585_ as-94644 destroyed. 02588_ Destroyed Asb. F-torch. 02588_ as-88464 destroyed. 02588_ as-19574 destroyed. 02591_ as-62042 destroyed. 02591_ as-37082 destroyed. 02591_ as-59271 destroyed. 02596_ Lgt. Treads destroyed. 02600_ K-01 Serf collects debris. 02606_ Lgt. Treads destroyed. 02608_ Wheel destroyed. 02609_ as-17322 destroyed. 02610_ Assault Rifle destroyed. 02616_ as-38386 destroyed. Map ----- +----------------------------------------------------+ | ???????????????????????????????????????? | | ???????????????????????????????????????? | | ???????????????????????????????????????? | | ???????????????????????????????????????? | | ???????????????????????????????????????? | | ???????????????????????????????????????? | | ???????????????????????????????????????? | | ???????????????????????????? ?????????? | | ???????????????????????????# # ??????? | | ??????????????????????????# # ?????? | | ?????????????????????????? ??????? | | ?????????????????????????? % #??????? | | ????????????????????????## ???????? | | ????????????????????????# ##??????? | | ???????????????????????## #??????? | | ???########????????????# #??????? | | ???# #????????????#X ???????? | | ???# """ #????????????" ###??????? | | ???# """ #????????????" ???????? | | ???# """ #????????????# ##???????? | | ???# #????????????# #???????? | | ???# #?????????????# #?????????? | | ???# #?????????????## ##?????????? | | ???# #??????????????# ##??????????? | | ???# #???????########a#####a #????? | | ???## #####???????# u @ a a #???? | | ????# #???????????# ########### #????? | | ????# #???????????# #??????????????????? | | #???# #???????????#|#??????????????????? | | ##??# #???????????#%#??????????????????? | | #### ##??????????#!##### ????? | | #??????????# ????? | | #### #??????????# #### ? ????? | | ##??? #??????????# #??????????????????? | | #???? #??????????# #??????????????????? | | #???? #??????????# #??????????????????? | | ###?? #????#####?# #??????????????????? | | ##? ????? #?# #??????????????????? | | ####??????# ### #????????????####??? | | #????????# ? ####????????## ##?? | | #????????# ##### ####?????# ##? | | #????????# #?## ####### #? | | ##???###### ### ? =%* ? #? | | #????# ##### #? | | ##???# ##???## #? | | ##??# ####### ##?????## ##? | | # #### #?????# ####???????# ##?? | | ## #?????# ##########??# #??? | | ## ######?????# ## #??# #??? | | #??????????# ## """ #### #??? | +----------------------------------------------------+ Best States ------------- Heat Dissipation 25 Energy Generation 10 Energy Capacity 250 Matter Stores 300 Matter Capacity 300 Sight Range 16 Robot Scan Range 20 Terrain Scan Density 10 ECM Strength 1 Evasion (%) 50 Recoil Reduction 2 Item Schematics ----------------- None Robot Schematics ------------------ None Fabricated ------------ Nothing Alien Tech Used ----------------- None Achievements -------------- None Challenges ------------ None Game ------ Seed HardenedMetaArmor Manual? 0 Play Time 00:21:28 Cumulative 48.4 hours Start 2025.01.19 @ 18:05:18 End 2025.01.19 @ 18:26:41 Sessions 1 Manual Loads 0 Difficulty Rogue Special Mode None Game No. 56 Rogue 53 Adventurer 0 Explorer 3 Win Type - Total 0 Types 0/0/0/0/0/0/0/0/0 Lore% 10 Gallery% 34 Achievement% 30 Wizard Run 0 Options --------- Layout 0 ASCII 0 Keyboard 0 Movement Numpad Keybinds 0 Fullscreen 0 Font 16/SmallcapsGlow Map View 88x55 Zoom Use 0% Tactical HUD 1 Map Filters NONE Filters NONE Steam 1 RUN: d566cdc1-16f0-400f-90dc-b9a8ab81233b